[Event "Titled Tuesday Blitz July 18 Early 2023"]
[White "Dimitrov, Atanas"]
[Black "He, Anthony"]
[WhiteFideId "2901315"]
[BlackFideId "2088215"]
[WhiteElo "2681"]
[BlackElo "2947"]
[Result "1/2-1/2"]
[Round "3"]
[TimeControl "180+2"]
[Date "2023.07.18"]
[WhiteClock "0:00:13"]
[BlackClock "0:00:16"]
[Board "16"]

1. Nf3 {[%clk 0:03:00]}  Nf6 {[%clk 0:02:59]} 2. c4 {[%clk 0:03:01]}  c5 {[%clk 0:02:59]} 3. g3 {[%clk 0:03:01]}  g6 {[%clk 0:02:59]} 4. Bg2 {[%clk 0:03:01]}  Bg7 {[%clk 0:02:59]} 5. O-O {[%clk 0:03:02]}  O-O {[%clk 0:03:00]} 6. Nc3 {[%clk 0:03:01]}  d5 {[%clk 0:03:00]} 7. cxd5 {[%clk 0:03:01]}  Nxd5 {[%clk 0:03:01]} 8. Qc2 {[%clk 0:02:53]}  Nc6 {[%clk 0:02:54]} 9. d3 {[%clk 0:02:52]}  Nc7 {[%clk 0:02:49]} 10. b3 {[%clk 0:02:48]}  b6 {[%clk 0:02:38]} 11. Bb2 {[%clk 0:02:47]}  Bb7 {[%clk 0:02:39]} 12. Rac1 {[%clk 0:02:45]}  Rc8 {[%clk 0:02:38]} 13. Qd2 {[%clk 0:02:40]}  e5 {[%clk 0:02:36]} 14. e3 {[%clk 0:02:36]}  Ne6 {[%clk 0:02:35]} 15. Rfd1 {[%clk 0:02:34]}  Qd7 {[%clk 0:02:35]} 16. h4 {[%clk 0:02:32]}  Rfd8 {[%clk 0:02:32]} 17. Qe2 {[%clk 0:02:25]}  Ba6 {[%clk 0:02:22]} 18. Ne1 {[%clk 0:02:23]}  h5 {[%clk 0:02:19]} 19. Ne4 {[%clk 0:02:18]}  Qe7 {[%clk 0:02:20]} 20. Bc3 {[%clk 0:02:12]}  Rd7 {[%clk 0:02:19]} 21. a3 {[%clk 0:01:58]}  Bb5 {[%clk 0:02:01]} 22. b4 {[%clk 0:01:53]}  cxb4 {[%clk 0:01:57]} 23. Bxb4 {[%clk 0:01:53]}  Qd8 {[%clk 0:01:57]} 24. Bc3 {[%clk 0:01:47]}  Ba4 {[%clk 0:01:57]} 25. Rd2 {[%clk 0:01:44]}  Ne7 {[%clk 0:01:58]} 26. Bb2 {[%clk 0:01:32]}  Rxc1 {[%clk 0:01:57]} 27. Bxc1 {[%clk 0:01:33]}  Rc7 {[%clk 0:01:58]} 28. Bb2 {[%clk 0:01:32]}  Qd7 {[%clk 0:01:47]} 29. Nf3 {[%clk 0:01:29]}  Nc6 {[%clk 0:01:41]} 30. Neg5 {[%clk 0:01:24]}  Bb3 {[%clk 0:01:38]} 31. Nxe6 {[%clk 0:01:23]}  Qxe6 {[%clk 0:01:37]} 32. d4 {[%clk 0:01:19]}  exd4 {[%clk 0:01:27]} 33. Nxd4 {[%clk 0:01:19]}  Nxd4 {[%clk 0:01:27]} 34. Bxd4 {[%clk 0:01:20]}  Bf8 {[%clk 0:01:26]} 35. Bb2 {[%clk 0:01:16]}  b5 {[%clk 0:01:21]} 36. Qxb5 {[%clk 0:01:12]}  Bc4 {[%clk 0:01:21]} 37. Qa5 {[%clk 0:01:09]}  Re7 {[%clk 0:01:11]} 38. Qc3 {[%clk 0:01:08]}  f6 {[%clk 0:01:07]} 39. Qxf6 {[%clk 0:01:04]}  Qxf6 {[%clk 0:01:07]} 40. Bxf6 {[%clk 0:01:04]}  Re6 {[%clk 0:01:06]} 41. Bd4 {[%clk 0:01:01]}  Ra6 {[%clk 0:01:07]} 42. Rc2 {[%clk 0:00:58]}  Be6 {[%clk 0:01:07]} 43. Be4 {[%clk 0:00:55]}  Bf5 {[%clk 0:00:37]} 44. Bxf5 {[%clk 0:00:51]}  gxf5 {[%clk 0:00:38]} 45. Rc7 {[%clk 0:00:50]}  Rxa3 {[%clk 0:00:38]} 46. Rxa7 {[%clk 0:00:50]}  Rxa7 {[%clk 0:00:38]} 47. Bxa7 {[%clk 0:00:50]}  Kf7 {[%clk 0:00:39]} 48. Kg2 {[%clk 0:00:50]}  Ke6 {[%clk 0:00:39]} 49. Kf3 {[%clk 0:00:50]}  Bd6 {[%clk 0:00:39]} 50. Bd4 {[%clk 0:00:50]}  Kd5 {[%clk 0:00:39]} 51. Bf6 {[%clk 0:00:50]}  Bc7 {[%clk 0:00:38]} 52. Bg5 {[%clk 0:00:50]}  Bd6 {[%clk 0:00:39]} 53. Bf4 {[%clk 0:00:50]}  Bb4 {[%clk 0:00:39]} 54. Ke2 {[%clk 0:00:50]}  Be7 {[%clk 0:00:39]} 55. Kd3 {[%clk 0:00:50]}  Bc5 {[%clk 0:00:38]} 56. f3 {[%clk 0:00:50]}  Be7 {[%clk 0:00:38]} 57. Bg5 {[%clk 0:00:43]}  Bd6 {[%clk 0:00:38]} 58. e4+ {[%clk 0:00:40]}  fxe4+ {[%clk 0:00:39]} 59. fxe4+ {[%clk 0:00:41]}  Ke6 {[%clk 0:00:39]} 60. Bf4 {[%clk 0:00:42]}  Be7 {[%clk 0:00:39]} 61. Ke3 {[%clk 0:00:42]}  Bf6 {[%clk 0:00:39]} 62. Kf3 {[%clk 0:00:42]}  Be7 {[%clk 0:00:36]} 63. Bg5 {[%clk 0:00:42]}  Bf8 {[%clk 0:00:30]} 64. Bf4 {[%clk 0:00:38]}  Be7 {[%clk 0:00:30]} 65. Bg5 {[%clk 0:00:38]}  Bf8 {[%clk 0:00:30]} 66. g4 {[%clk 0:00:31]}  hxg4+ {[%clk 0:00:31]} 67. Kxg4 {[%clk 0:00:32]}  Ke5 {[%clk 0:00:32]} 68. Kh5 {[%clk 0:00:32]}  Kxe4 {[%clk 0:00:21]} 69. Kg6 {[%clk 0:00:33]}  Ke5 {[%clk 0:00:22]} 70. Bf6+ {[%clk 0:00:32]}  Ke6 {[%clk 0:00:23]} 71. h5 {[%clk 0:00:31]}  Bh6 {[%clk 0:00:18]} 72. Bg7 {[%clk 0:00:25]}  Bc1 {[%clk 0:00:18]} 73. Bd4 {[%clk 0:00:18]}  Bd2 {[%clk 0:00:17]} 74. Bf2 {[%clk 0:00:19]}  Bf4 {[%clk 0:00:17]} 75. Bh4 {[%clk 0:00:19]}  Bc1 {[%clk 0:00:17]} 76. Kg7 {[%clk 0:00:16]}  Bb2+ {[%clk 0:00:15]} 77. Kg8 {[%clk 0:00:14]}  Bc1 {[%clk 0:00:16]} 78. Be1 {[%clk 0:00:13]}  Kf5 {[%clk 0:00:16]} 79. Bh4 {[%clk 0:00:12]}  Kg4 {[%clk 0:00:16]} 80. h6 {[%clk 0:00:13]}  Bxh6 {[%clk 0:00:16]} 1/2-1/2


[Site "https://www.chess.com"]

[Event "Titled Tuesday Blitz July 18 Early 2023"]
[White "Ibarra Jerez, Jose Carlos"]
[Black "Itgelt, Khuyagtsogt"]
[WhiteFideId "2226332"]
[BlackFideId "4902912"]
[WhiteElo "2945"]
[BlackElo "2681"]
[Result "1-0"]
[Round "3"]
[TimeControl "180+2"]
[Date "2023.07.18"]
[WhiteClock "0:00:36"]
[BlackClock "0:00:15"]
[Board "17"]

1. e4 {[%clk 0:03:00]}  e6 {[%clk 0:03:00]} 2. d4 {[%clk 0:03:00]}  d5 {[%clk 0:03:00]} 3. Nc3 {[%clk 0:03:00]}  Bb4 {[%clk 0:03:00]} 4. Ne2 {[%clk 0:02:59]}  Nf6 {[%clk 0:02:52]} 5. e5 {[%clk 0:02:53]}  Ne4 {[%clk 0:02:52]} 6. a3 {[%clk 0:02:53]}  Nxc3 {[%clk 0:02:42]} 7. Nxc3 {[%clk 0:02:54]}  Bxc3+ {[%clk 0:02:41]} 8. bxc3 {[%clk 0:02:55]}  c5 {[%clk 0:02:40]} 9. Qg4 {[%clk 0:02:56]}  Qa5 {[%clk 0:02:33]} 10. Bd2 {[%clk 0:02:46]}  O-O {[%clk 0:02:26]} 11. Bd3 {[%clk 0:02:44]}  c4 {[%clk 0:02:13]} 12. Be2 {[%clk 0:02:27]}  Nd7 {[%clk 0:02:05]} 13. h4 {[%clk 0:02:26]}  f5 {[%clk 0:02:03]} 14. Qf4 {[%clk 0:02:22]}  Rf7 {[%clk 0:01:50]} 15. h5 {[%clk 0:02:20]}  Nf8 {[%clk 0:01:45]} 16. Rg1 {[%clk 0:02:17]}  Bd7 {[%clk 0:01:42]} 17. g4 {[%clk 0:02:12]}  fxg4 {[%clk 0:01:37]} 18. Qxg4 {[%clk 0:02:13]}  Ba4 {[%clk 0:01:38]} 19. Bd1 {[%clk 0:02:11]}  Rc8 {[%clk 0:01:18]} 20. Rg3 {[%clk 0:02:09]}  Qb6 {[%clk 0:01:08]} 21. Bc1 {[%clk 0:02:02]}  Rcc7 {[%clk 0:01:03]} 22. f4 {[%clk 0:01:53]}  Rf5 {[%clk 0:01:00]} 23. Qh3 {[%clk 0:01:51]}  Rcf7 {[%clk 0:00:58]} 24. Qh2 {[%clk 0:01:46]}  Rxf4 {[%clk 0:00:32]} 25. Bxf4 {[%clk 0:01:45]}  Qb2 {[%clk 0:00:32]} 26. Rc1 {[%clk 0:01:42]}  Rxf4 {[%clk 0:00:31]} 27. Rxg7+ {[%clk 0:01:41]}  Kxg7 {[%clk 0:00:32]} 28. Qxf4 {[%clk 0:01:40]}  Qxc3+ {[%clk 0:00:33]} 29. Kf2 {[%clk 0:01:38]}  h6 {[%clk 0:00:24]} 30. Be2 {[%clk 0:00:39]}  Nh7 {[%clk 0:00:21]} 31. Rg1+ {[%clk 0:00:39]}  Ng5 {[%clk 0:00:22]} 32. Qf6+ {[%clk 0:00:37]}  Kg8 {[%clk 0:00:15]} 33. Qg6+ {[%clk 0:00:36]} 1-0


[Site "https://www.chess.com"]

[Event "Titled Tuesday Blitz July 18 Early 2023"]
[White "Nouri, Alekhine"]
[Black "Vokhidov, Shamsiddin"]
[WhiteFideId "5216184"]
[BlackFideId "14204223"]
[WhiteElo "2681"]
[BlackElo "2939"]
[Result "1-0"]
[Round "3"]
[TimeControl "180+2"]
[Date "2023.07.18"]
[WhiteClock "0:00:33"]
[BlackClock "0:00:06"]
[Board "18"]

1. e4 {[%clk 0:02:58]}  c5 {[%clk 0:03:00]} 2. Nc3 {[%clk 0:02:58]}  Nc6 {[%clk 0:03:00]} 3. Bb5 {[%clk 0:02:58]}  Nd4 {[%clk 0:03:00]} 4. Nf3 {[%clk 0:02:58]}  a6 {[%clk 0:03:00]} 5. Bd3 {[%clk 0:02:58]}  g6 {[%clk 0:03:00]} 6. b4 {[%clk 0:02:58]}  Nxf3+ {[%clk 0:02:56]} 7. Qxf3 {[%clk 0:02:58]}  cxb4 {[%clk 0:02:57]} 8. Nd5 {[%clk 0:02:57]}  Bg7 {[%clk 0:02:57]} 9. Rb1 {[%clk 0:02:53]}  e6 {[%clk 0:02:55]} 10. Ne3 {[%clk 0:02:36]}  Ne7 {[%clk 0:02:54]} 11. Rxb4 {[%clk 0:02:34]}  Nc6 {[%clk 0:02:52]} 12. Bb2 {[%clk 0:02:35]}  O-O {[%clk 0:02:40]} 13. Bxg7 {[%clk 0:02:34]}  Kxg7 {[%clk 0:02:41]} 14. Rb1 {[%clk 0:02:32]}  b5 {[%clk 0:02:39]} 15. O-O {[%clk 0:02:24]}  Bb7 {[%clk 0:02:37]} 16. a4 {[%clk 0:02:23]}  b4 {[%clk 0:02:34]} 17. Nc4 {[%clk 0:02:19]}  d5 {[%clk 0:02:31]} 18. exd5 {[%clk 0:02:09]}  exd5 {[%clk 0:02:31]} 19. Ne3 {[%clk 0:01:59]}  d4 {[%clk 0:02:27]} 20. Nc4 {[%clk 0:01:59]}  Na5 {[%clk 0:02:10]} 21. Qf4 {[%clk 0:01:56]}  Nxc4 {[%clk 0:02:10]} 22. Bxc4 {[%clk 0:01:56]}  a5 {[%clk 0:02:10]} 23. Rfe1 {[%clk 0:01:43]}  Rc8 {[%clk 0:02:09]} 24. d3 {[%clk 0:01:41]}  Qf6 {[%clk 0:02:08]} 25. Qe5 {[%clk 0:01:31]}  Rfe8 {[%clk 0:02:03]} 26. Qxa5 {[%clk 0:01:21]}  Qd6 {[%clk 0:01:36]} 27. Qa7 {[%clk 0:00:58]}  Rxe1+ {[%clk 0:01:21]} 28. Rxe1 {[%clk 0:00:59]}  Rc7 {[%clk 0:01:19]} 29. Qa5 {[%clk 0:00:51]}  Rc5 {[%clk 0:01:09]} 30. Qa7 {[%clk 0:00:51]}  Re5 {[%clk 0:00:36]} 31. Rxe5 {[%clk 0:00:37]}  Qxe5 {[%clk 0:00:36]} 32. Kf1 {[%clk 0:00:38]}  Bxg2+ {[%clk 0:00:20]} 33. Kxg2 {[%clk 0:00:37]}  Qg5+ {[%clk 0:00:21]} 34. Kf3 {[%clk 0:00:35]}  Qf5+ {[%clk 0:00:21]} 35. Ke2 {[%clk 0:00:35]}  Qg4+ {[%clk 0:00:18]} 36. Kd2 {[%clk 0:00:33]}  Qf4+ {[%clk 0:00:18]} 37. Kd1 {[%clk 0:00:33]}  Qxf2 {[%clk 0:00:14]} 38. Kc1 {[%clk 0:00:33]}  Qe1+ {[%clk 0:00:08]} 39. Kb2 {[%clk 0:00:33]}  Qc3+ {[%clk 0:00:09]} 40. Kb1 {[%clk 0:00:34]}  Qe1+ {[%clk 0:00:08]} 41. Ka2 {[%clk 0:00:34]}  Qf2 {[%clk 0:00:09]} 42. Kb3 {[%clk 0:00:33]}  g5 {[%clk 0:00:09]} 43. a5 {[%clk 0:00:33]}  g4 {[%clk 0:00:08]} 44. a6 {[%clk 0:00:33]}  h5 {[%clk 0:00:08]} 45. Qxf7+ {[%clk 0:00:33]}  Qxf7 {[%clk 0:00:07]} 46. Bxf7 {[%clk 0:00:33]}  g3 {[%clk 0:00:07]} 47. a7 {[%clk 0:00:34]}  g2 {[%clk 0:00:07]} 48. a8=Q {[%clk 0:00:33]}  g1=Q {[%clk 0:00:06]} 49. Qg8+ {[%clk 0:00:33]} 1-0


[Site "https://www.chess.com"]

[Event "Titled Tuesday Blitz July 18 Early 2023"]
[White "Durarbayli, Vasif"]
[Black "Begmuratov, Alisher"]
[WhiteFideId "13402935"]
[BlackFideId "14203367"]
[WhiteElo "2929"]
[BlackElo "2677"]
[Result "1-0"]
[Round "3"]
[TimeControl "180+2"]
[Date "2023.07.18"]
[WhiteClock "0:00:18"]
[BlackClock "0:00:08"]
[Board "20"]

1. e4 {[%clk 0:03:00]}  e5 {[%clk 0:02:53]} 2. Nc3 {[%clk 0:02:57]}  Nc6 {[%clk 0:02:53]} 3. f4 {[%clk 0:02:56]}  exf4 {[%clk 0:02:52]} 4. d4 {[%clk 0:02:56]}  Bb4 {[%clk 0:02:47]} 5. Bxf4 {[%clk 0:02:49]}  d5 {[%clk 0:02:42]} 6. exd5 {[%clk 0:02:45]}  Qxd5 {[%clk 0:02:39]} 7. Nf3 {[%clk 0:02:41]}  Nge7 {[%clk 0:02:20]} 8. Be2 {[%clk 0:02:35]}  Qa5 {[%clk 0:01:55]} 9. O-O {[%clk 0:02:33]}  Bd6 {[%clk 0:01:54]} 10. Bxd6 {[%clk 0:02:08]}  cxd6 {[%clk 0:01:55]} 11. d5 {[%clk 0:02:08]}  Nb8 {[%clk 0:01:34]} 12. Bb5+ {[%clk 0:01:41]}  Bd7 {[%clk 0:01:33]} 13. Bxd7+ {[%clk 0:01:25]}  Nxd7 {[%clk 0:01:33]} 14. Qe2 {[%clk 0:01:26]}  f6 {[%clk 0:00:52]} 15. Kh1 {[%clk 0:00:57]}  Ne5 {[%clk 0:00:47]} 16. Nxe5 {[%clk 0:00:52]}  fxe5 {[%clk 0:00:41]} 17. Qg4 {[%clk 0:00:49]}  Qc7 {[%clk 0:00:33]} 18. Qxg7 {[%clk 0:00:33]}  O-O-O {[%clk 0:00:32]} 19. Rf7 {[%clk 0:00:29]}  Rhg8 {[%clk 0:00:21]} 20. Qf6 {[%clk 0:00:22]}  Rde8 {[%clk 0:00:18]} 21. Qe6+ {[%clk 0:00:22]}  Qd7 {[%clk 0:00:08]} 22. Rxe7 {[%clk 0:00:18]} 1-0


[Site "https://www.chess.com"]

[Event "Titled Tuesday Blitz July 18 Early 2023"]
[White "gau_npukyputb"]
[Black "Gholami Orimi, Mahdi"]
[BlackFideId "12558486"]
[WhiteElo "2677"]
[BlackElo "2924"]
[Result "0-1"]
[Round "3"]
[TimeControl "180+2"]
[Date "2023.07.18"]
[WhiteClock "0:00:00"]
[BlackClock "0:00:04"]
[Board "21"]

1. g3 {[%clk 0:03:00]}  d5 {[%clk 0:02:51]} 2. Nf3 {[%clk 0:02:58]}  g6 {[%clk 0:02:51]} 3. Bg2 {[%clk 0:02:58]}  Bg7 {[%clk 0:02:51]} 4. O-O {[%clk 0:02:59]}  e5 {[%clk 0:02:52]} 5. c4 {[%clk 0:02:57]}  d4 {[%clk 0:02:50]} 6. e3 {[%clk 0:02:57]}  Ne7 {[%clk 0:02:50]} 7. exd4 {[%clk 0:02:57]}  exd4 {[%clk 0:02:51]} 8. Re1 {[%clk 0:02:57]}  O-O {[%clk 0:02:51]} 9. d3 {[%clk 0:02:58]}  c5 {[%clk 0:02:51]} 10. Bf4 {[%clk 0:02:55]}  Nbc6 {[%clk 0:02:51]} 11. Ne5 {[%clk 0:02:55]}  Qb6 {[%clk 0:02:44]} 12. Qd2 {[%clk 0:02:49]}  Be6 {[%clk 0:02:24]} 13. Na3 {[%clk 0:02:39]}  a6 {[%clk 0:01:56]} 14. b3 {[%clk 0:02:18]}  Rfe8 {[%clk 0:01:35]} 15. Nc2 {[%clk 0:02:15]}  Rac8 {[%clk 0:01:31]} 16. Re2 {[%clk 0:02:06]}  Nxe5 {[%clk 0:01:11]} 17. Bxe5 {[%clk 0:02:07]}  f6 {[%clk 0:01:11]} 18. Bf4 {[%clk 0:01:59]}  Bg4 {[%clk 0:01:12]} 19. f3 {[%clk 0:01:47]}  Bd7 {[%clk 0:01:11]} 20. Rae1 {[%clk 0:01:26]}  Nf5 {[%clk 0:01:10]} 21. Rxe8+ {[%clk 0:01:23]}  Rxe8 {[%clk 0:01:11]} 22. Rxe8+ {[%clk 0:01:21]}  Bxe8 {[%clk 0:01:12]} 23. Bh3 {[%clk 0:01:08]}  Bd7 {[%clk 0:00:56]} 24. b4 {[%clk 0:00:37]}  Nh4 {[%clk 0:00:45]} 25. Bg2 {[%clk 0:00:19]}  Nxg2 {[%clk 0:00:43]} 26. Kxg2 {[%clk 0:00:20]}  g5 {[%clk 0:00:40]} 27. Bb8 {[%clk 0:00:20]}  Bc6 {[%clk 0:00:30]} 28. Kf2 {[%clk 0:00:18]}  Bf8 {[%clk 0:00:27]} 29. bxc5 {[%clk 0:00:15]}  Bxc5 {[%clk 0:00:28]} 30. g4 {[%clk 0:00:13]}  Qb2 {[%clk 0:00:16]} 31. Qe2 {[%clk 0:00:13]}  Kf7 {[%clk 0:00:16]} 32. Ne1 {[%clk 0:00:12]}  Qc1 {[%clk 0:00:14]} 33. h3 {[%clk 0:00:08]}  b5 {[%clk 0:00:12]} 34. cxb5 {[%clk 0:00:08]}  Bxb5 {[%clk 0:00:12]} 35. Bg3 {[%clk 0:00:07]}  Bc6 {[%clk 0:00:10]} 36. h4 {[%clk 0:00:06]}  h6 {[%clk 0:00:09]} 37. h5 {[%clk 0:00:06]}  Bd5 {[%clk 0:00:09]} 38. a4 {[%clk 0:00:06]}  Bb4 {[%clk 0:00:08]} 39. Kg2 {[%clk 0:00:03]}  Bd2 {[%clk 0:00:05]} 40. Bf2 {[%clk 0:00:03]}  Bc3 {[%clk 0:00:03]} 41. Nc2 {[%clk 0:00:00]}  Qf4 {[%clk 0:00:04]} 0-1


[Site "https://www.chess.com"]

[Event "Titled Tuesday Blitz July 18 Early 2023"]
[White "Jones, Gawain C B"]
[Black "Nagare Kaivalya Sandip"]
[WhiteFideId "409561"]
[BlackFideId "25957929"]
[WhiteElo "2923"]
[BlackElo "2670"]
[Result "1-0"]
[Round "3"]
[TimeControl "180+2"]
[Date "2023.07.18"]
[WhiteClock "0:00:05"]
[BlackClock "0:00:04"]
[Board "22"]

1. Nf3 {[%clk 0:02:55]}  d5 {[%clk 0:02:59]} 2. c4 {[%clk 0:02:54]}  c6 {[%clk 0:02:56]} 3. g3 {[%clk 0:02:54]}  Nf6 {[%clk 0:02:55]} 4. Bg2 {[%clk 0:02:55]}  Bg4 {[%clk 0:02:55]} 5. Ne5 {[%clk 0:02:53]}  Bf5 {[%clk 0:02:53]} 6. Qb3 {[%clk 0:02:53]}  Qb6 {[%clk 0:02:49]} 7. d3 {[%clk 0:02:52]}  e6 {[%clk 0:02:47]} 8. Be3 {[%clk 0:02:49]}  Qc7 {[%clk 0:02:41]} 9. Nf3 {[%clk 0:02:33]}  Bd6 {[%clk 0:02:38]} 10. Nh4 {[%clk 0:02:32]}  Nbd7 {[%clk 0:02:36]} 11. Nxf5 {[%clk 0:02:31]}  exf5 {[%clk 0:02:37]} 12. cxd5 {[%clk 0:02:31]}  cxd5 {[%clk 0:02:23]} 13. Nc3 {[%clk 0:02:30]}  O-O {[%clk 0:02:17]} 14. Nb5 {[%clk 0:02:18]}  Qa5+ {[%clk 0:02:12]} 15. Bd2 {[%clk 0:02:16]}  Qb6 {[%clk 0:02:11]} 16. Nxd6 {[%clk 0:02:14]}  Qxd6 {[%clk 0:02:12]} 17. O-O {[%clk 0:02:12]}  Rfe8 {[%clk 0:02:08]} 18. Rfe1 {[%clk 0:02:09]}  b6 {[%clk 0:02:01]} 19. Rac1 {[%clk 0:02:04]}  Rac8 {[%clk 0:01:59]} 20. Bf4 {[%clk 0:02:00]}  Qe6 {[%clk 0:01:55]} 21. Rxc8 {[%clk 0:01:46]}  Rxc8 {[%clk 0:01:54]} 22. Qa4 {[%clk 0:01:46]}  Nc5 {[%clk 0:01:47]} 23. Qd4 {[%clk 0:01:37]}  Qd7 {[%clk 0:01:32]} 24. Be5 {[%clk 0:01:30]}  Ne6 {[%clk 0:01:31]} 25. Qb4 {[%clk 0:01:20]}  Ng4 {[%clk 0:01:27]} 26. Bc3 {[%clk 0:01:17]}  d4 {[%clk 0:01:25]} 27. Bd2 {[%clk 0:01:17]}  h5 {[%clk 0:01:19]} 28. h3 {[%clk 0:01:12]}  Ne5 {[%clk 0:01:15]} 29. Rc1 {[%clk 0:00:59]}  Rxc1+ {[%clk 0:01:12]} 30. Bxc1 {[%clk 0:01:00]}  Qc7 {[%clk 0:01:12]} 31. Bd2 {[%clk 0:00:48]}  Qc2 {[%clk 0:01:12]} 32. Bf1 {[%clk 0:00:28]}  Nc6 {[%clk 0:00:59]} 33. Qc4 {[%clk 0:00:28]}  Qxc4 {[%clk 0:00:54]} 34. dxc4 {[%clk 0:00:27]}  Nc5 {[%clk 0:00:46]} 35. e3 {[%clk 0:00:12]}  Ne5 {[%clk 0:00:34]} 36. Kg2 {[%clk 0:00:09]}  d3 {[%clk 0:00:32]} 37. Bc3 {[%clk 0:00:03]}  Nxc4 {[%clk 0:00:29]} 38. b4 {[%clk 0:00:04]}  d2 {[%clk 0:00:25]} 39. Bxd2 {[%clk 0:00:04]}  Nxd2 {[%clk 0:00:24]} 40. bxc5 {[%clk 0:00:04]}  bxc5 {[%clk 0:00:17]} 41. Be2 {[%clk 0:00:05]}  g6 {[%clk 0:00:17]} 42. f3 {[%clk 0:00:04]}  Kf8 {[%clk 0:00:17]} 43. Kf2 {[%clk 0:00:05]}  Ke7 {[%clk 0:00:16]} 44. Ke1 {[%clk 0:00:03]}  Nb1 {[%clk 0:00:16]} 45. Bc4 {[%clk 0:00:03]}  Na3 {[%clk 0:00:15]} 46. Bd5 {[%clk 0:00:03]}  Nb5 {[%clk 0:00:15]} 47. Kd2 {[%clk 0:00:03]}  f6 {[%clk 0:00:14]} 48. Kd3 {[%clk 0:00:02]}  Nd6 {[%clk 0:00:13]} 49. h4 {[%clk 0:00:01]}  g5 {[%clk 0:00:13]} 50. Kc3 {[%clk 0:00:02]}  g4 {[%clk 0:00:13]} 51. f4 {[%clk 0:00:02]}  Kd7 {[%clk 0:00:12]} 52. Kd3 {[%clk 0:00:02]}  Ne4 {[%clk 0:00:11]} 53. Bxe4 {[%clk 0:00:02]}  fxe4+ {[%clk 0:00:12]} 54. Kxe4 {[%clk 0:00:03]}  Kc6 {[%clk 0:00:09]} 55. Kd3 {[%clk 0:00:03]}  Kb5 {[%clk 0:00:08]} 56. e4 {[%clk 0:00:04]}  c4+ {[%clk 0:00:06]} 57. Kc3 {[%clk 0:00:02]}  Kc5 {[%clk 0:00:06]} 58. a4 {[%clk 0:00:02]}  a5 {[%clk 0:00:06]} 59. f5 {[%clk 0:00:02]}  Kd6 {[%clk 0:00:04]} 60. Kxc4 {[%clk 0:00:03]}  Ke5 {[%clk 0:00:04]} 61. Kd3 {[%clk 0:00:04]}  Kd6 {[%clk 0:00:04]} 62. Kd4 {[%clk 0:00:05]} 1-0


[Site "https://www.chess.com"]

[Event "Titled Tuesday Blitz July 18 Early 2023"]
[White "Spata, German"]
[Black "Donchenko, Alexander"]
[WhiteFideId "113026"]
[BlackFideId "24603295"]
[WhiteElo "2652"]
[BlackElo "2868"]
[Result "1/2-1/2"]
[Round "3"]
[TimeControl "180+2"]
[Date "2023.07.18"]
[WhiteClock "0:00:12"]
[BlackClock "0:00:03"]
[Board "26"]

1. Nf3 {[%clk 0:03:00]}  Nf6 {[%clk 0:02:59]} 2. e3 {[%clk 0:03:01]}  b6 {[%clk 0:02:59]} 3. b3 {[%clk 0:03:01]}  Bb7 {[%clk 0:03:00]} 4. Bb2 {[%clk 0:03:02]}  g6 {[%clk 0:03:00]} 5. Be2 {[%clk 0:03:02]}  Bg7 {[%clk 0:03:01]} 6. O-O {[%clk 0:03:02]}  O-O {[%clk 0:03:01]} 7. c4 {[%clk 0:03:03]}  c5 {[%clk 0:03:01]} 8. d4 {[%clk 0:03:03]}  cxd4 {[%clk 0:03:01]} 9. Nxd4 {[%clk 0:03:03]}  Nc6 {[%clk 0:03:00]} 10. Nxc6 {[%clk 0:03:02]}  Bxc6 {[%clk 0:02:59]} 11. Nc3 {[%clk 0:03:02]}  Qc7 {[%clk 0:02:56]} 12. Rc1 {[%clk 0:02:59]}  Rac8 {[%clk 0:02:55]} 13. Bf3 {[%clk 0:02:42]}  Rfd8 {[%clk 0:02:48]} 14. Bxc6 {[%clk 0:02:25]}  Qxc6 {[%clk 0:02:41]} 15. Nd5 {[%clk 0:02:18]}  Nxd5 {[%clk 0:02:38]} 16. cxd5 {[%clk 0:02:16]}  Qd6 {[%clk 0:02:27]} 17. Bxg7 {[%clk 0:02:16]}  Kxg7 {[%clk 0:02:28]} 18. Qd4+ {[%clk 0:02:08]}  Kg8 {[%clk 0:02:28]} 19. h4 {[%clk 0:02:01]}  Rc5 {[%clk 0:02:23]} 20. Rxc5 {[%clk 0:02:00]}  bxc5 {[%clk 0:02:23]} 21. Qd3 {[%clk 0:01:52]}  h5 {[%clk 0:02:16]} 22. Rc1 {[%clk 0:01:52]}  Qb6 {[%clk 0:02:09]} 23. d6 {[%clk 0:01:43]}  exd6 {[%clk 0:01:46]} 24. Rd1 {[%clk 0:01:43]}  Rc8 {[%clk 0:00:42]} 25. Qxd6 {[%clk 0:01:42]}  Qxd6 {[%clk 0:00:42]} 26. Rxd6 {[%clk 0:01:43]}  Rc7 {[%clk 0:00:43]} 27. Kf1 {[%clk 0:01:33]}  Kf8 {[%clk 0:00:43]} 28. Ke2 {[%clk 0:01:32]}  Ke8 {[%clk 0:00:44]} 29. Kd3 {[%clk 0:01:30]}  Ke7 {[%clk 0:00:43]} 30. Rd5 {[%clk 0:01:27]}  Ke6 {[%clk 0:00:40]} 31. Kc4 {[%clk 0:01:23]}  d6 {[%clk 0:00:39]} 32. e4 {[%clk 0:01:21]}  Rb7 {[%clk 0:00:38]} 33. a3 {[%clk 0:01:18]}  f5 {[%clk 0:00:33]} 34. e5 {[%clk 0:00:46]}  dxe5 {[%clk 0:00:31]} 35. Rxc5 {[%clk 0:00:45]}  f4 {[%clk 0:00:27]} 36. b4 {[%clk 0:00:38]}  Rd7 {[%clk 0:00:27]} 37. b5 {[%clk 0:00:24]}  e4 {[%clk 0:00:27]} 38. Rc8 {[%clk 0:00:20]}  Kf5 {[%clk 0:00:24]} 39. Rf8+ {[%clk 0:00:20]}  Kg4 {[%clk 0:00:25]} 40. Re8 {[%clk 0:00:20]}  Rd2 {[%clk 0:00:10]} 41. Rxe4 {[%clk 0:00:20]}  Rxf2 {[%clk 0:00:11]} 42. a4 {[%clk 0:00:20]}  Rxg2 {[%clk 0:00:11]} 43. a5 {[%clk 0:00:21]}  Rc2+ {[%clk 0:00:10]} 44. Kd5 {[%clk 0:00:21]}  Kg3 {[%clk 0:00:10]} 45. b6 {[%clk 0:00:20]}  axb6 {[%clk 0:00:10]} 46. axb6 {[%clk 0:00:21]}  Rb2 {[%clk 0:00:09]} 47. Kc6 {[%clk 0:00:21]}  f3 {[%clk 0:00:09]} 48. Re6 {[%clk 0:00:21]}  f2 {[%clk 0:00:06]} 49. Rxg6+ {[%clk 0:00:21]}  Kxh4 {[%clk 0:00:06]} 50. Rf6 {[%clk 0:00:22]}  Kg3 {[%clk 0:00:06]} 51. Rg6+ {[%clk 0:00:20]}  Kh2 {[%clk 0:00:06]} 52. Rf6 {[%clk 0:00:19]}  h4 {[%clk 0:00:04]} 53. b7 {[%clk 0:00:19]}  Kg2 {[%clk 0:00:04]} 54. Rg6+ {[%clk 0:00:20]}  Kf3 {[%clk 0:00:04]} 55. Rf6+ {[%clk 0:00:20]}  Kg2 {[%clk 0:00:04]} 56. Rg6+ {[%clk 0:00:20]}  Kh1 {[%clk 0:00:04]} 57. Rf6 {[%clk 0:00:19]}  h3 {[%clk 0:00:02]} 58. Rxf2 {[%clk 0:00:18]}  Rxb7 {[%clk 0:00:03]} 59. Kxb7 {[%clk 0:00:17]}  h2 {[%clk 0:00:03]} 60. Rf8 {[%clk 0:00:14]}  Kg2 {[%clk 0:00:03]} 61. Rg8+ {[%clk 0:00:14]}  Kh1 {[%clk 0:00:03]} 62. Rg7 {[%clk 0:00:12]} 1/2-1/2


[Site "https://www.chess.com"]